fUSD/lending_fUSD_20260614
["ID","MTS","AMOUNT","RATE_DAILY","PERIOD"]
[425006025,1781409050000,-500.0,0.00027397,2]
[425006035,1781409050000,-576.32,0.00027397,2]
[425006031,1781409050000,-500.0,0.00027397,2]
[425006036,1781409050000,-500.0,0.00027397,2]
[425006043,1781409050000,-500.0,0.00027397,2]
[425006034,1781409050000,-966.63,0.00027397,2]
[425006042,1781409050000,-500.0,0.00027397,2]
[425006040,1781409050000,-1052.72,0.00027397,2]
[425006041,1781409050000,-500.0,0.00027397,2]
[425006050,1781409050000,-500.0,0.00027397,2]
[425006044,1781409050000,-1019.73,0.00027397,2]
[425006049,1781409050000,-500.0,0.00027397,2]
[425006046,1781409050000,-500.0,0.00027397,2]
[425006047,1781409050000,-2012.07,0.00027397,2]
[425006045,1781409050000,-500.0,0.00027397,2]
[425006048,1781409050000,-510.70907441,0.00027397,2]
[425006039,1781409050000,-500.0,0.00027397,2]
[425006024,1781409050000,-500.0,0.00027397,2]
[425005995,1781409050000,-700.41,0.00027397,2]
[425006023,1781409050000,-942.01,0.00027397,2]
[425006051,1781409050000,-500.0,0.00027397,2]
[425005998,1781409050000,-1265.5,0.00027397,2]
[425005996,1781409050000,-500.0,0.00027397,2]
[425005997,1781409050000,-500.0,0.00027397,2]
[425006001,1781409050000,-500.0,0.00027397,2]
[425005999,1781409050000,-500.0,0.00027397,2]
[425006002,1781409050000,-500.0,0.00027397,2]
[425006006,1781409050000,-537.51,0.00027397,2]
[425006003,1781409050000,-553.70123705,0.00027397,2]
[425006000,1781409050000,-500.0,0.00027397,2]
[425006004,1781409050000,-1666.92,0.00027397,2]
[425006005,1781409050000,-500.0,0.00027397,2]
[425006022,1781409050000,-500.0,0.00027397,2]
[425006008,1781409050000,-500.0,0.00027397,2]
[425006011,1781409050000,-500.0,0.00027397,2]
[425006010,1781409050000,-1135.74,0.00027397,2]
[425006012,1781409050000,-500.0,0.00027397,2]
[425006014,1781409050000,-500.0,0.00027397,2]
[425006013,1781409050000,-500.0,0.00027397,2]
[425006018,1781409050000,-500.0,0.00027397,2]
[425006015,1781409050000,-1064.35,0.00027397,2]
[425006016,1781409050000,-500.0,0.00027397,2]
[425006017,1781409050000,-500.0,0.00027397,2]
[425006019,1781409050000,-500.0,0.00027397,2]
[425006020,1781409050000,-580.97,0.00027397,2]
[425006021,1781409050000,-500.0,0.00027397,2]
[425006009,1781409050000,-1418.32,0.00027397,2]
[425006053,1781409050000,-500.0,0.00027397,2]
[425006007,1781409050000,-500.0,0.00027397,2]
[425006054,1781409050000,-500.0,0.00027397,2]
[425006084,1781409050000,-1715.9,0.00027397,2]
[425006082,1781409050000,-1574.17,0.00027397,2]
[425006086,1781409050000,-602.95928698,0.00027397,2]
[425006089,1781409050000,-1306.32,0.00027397,2]
[425006088,1781409050000,-500.0,0.00027397,2]
[425006091,1781409050000,-500.0,0.00027397,2]
[425006090,1781409050000,-1606.64,0.00027397,2]
[425006093,1781409050000,-500.0,0.00027397,2]
[425006094,1781409050000,-619.42197433,0.00027397,2]
[425006095,1781409050000,-722.6,0.00027397,2]
[425006092,1781409050000,-500.0,0.00027397,2]
[425006097,1781409050000,-500.0,0.00027397,2]
[425006087,1781409050000,-599.61,0.00027397,2]
[425006096,1781409050000,-2036.38,0.00027397,2]
[425006098,1781409050000,-500.0,0.00027397,2]
[425006100,1781409050000,-500.0,0.00027397,2]
[425006110,1781409050000,-500.0,0.00027397,2]
[425006101,1781409050000,-1021.53,0.00027397,2]
[425006103,1781409050000,-775.46,0.00027397,2]
[425006102,1781409050000,-607.68,0.00027397,2]
[425006105,1781409050000,-500.0,0.00027397,2]
[425006106,1781409050000,-500.0,0.00027397,2]
[425006104,1781409050000,-500.0,0.00027397,2]
[425006108,1781409050000,-500.0,0.00027397,2]
[425006107,1781409050000,-500.0,0.00027397,2]
[425006052,1781409050000,-1091.39,0.00027397,2]
[425006099,1781409050000,-500.0,0.00027397,2]
[425006085,1781409050000,-500.0,0.00027397,2]
[425006109,1781409050000,-500.0,0.00027397,2]
[425006083,1781409050000,-500.0,0.00027397,2]
[425006056,1781409050000,-548.04,0.00027397,2]
[425006058,1781409050000,-578.89,0.00027397,2]
[425006062,1781409050000,-500.0,0.00027397,2]
[425006055,1781409050000,-607.75651984,0.00027397,2]
[425006060,1781409050000,-512.28848386,0.00027397,2]
[425006061,1781409050000,-500.0,0.00027397,2]
[425006064,1781409050000,-500.0,0.00027397,2]
[425006080,1781409050000,-580.84,0.00027397,2]
[425006059,1781409050000,-1751.6,0.00027397,2]
[425006063,1781409050000,-757.84,0.00027397,2]
[425006066,1781409050000,-500.0,0.00027397,2]
[425006065,1781409050000,-500.0,0.00027397,2]
[425006068,1781409050000,-500.0,0.00027397,2]
[425006057,1781409050000,-363.88303274,0.00027397,2]
[425006067,1781409050000,-500.0,0.00027397,2]
[425006070,1781409050000,-666.12,0.00027397,2]
[425006079,1781409050000,-543.35,0.00027397,2]
[425006077,1781409050000,-500.0,0.00027397,2]
[425006081,1781409050000,-562.35,0.00027397,2]
[425006075,1781409050000,-2037.63,0.00027397,2]
[425006078,1781409050000,-500.0,0.00027397,2]
[425006076,1781409050000,-500.0,0.00027397,2]
[425006072,1781409050000,-500.0,0.00027397,2]
[425006074,1781409050000,-564.22,0.00027397,2]
[425006071,1781409050000,-500.0,0.00027397,2]
[425006069,1781409050000,-936.19,0.00027397,2]
[425006073,1781409050000,-1821.35,0.00027397,2]
[425006151,1781409051000,-2166.21,0.00027397,2]
[425006159,1781409051000,-500.0,0.00027397,2]
[425006149,1781409051000,-500.0,0.00027397,2]
[425006147,1781409051000,-500.0,0.00027397,2]
[425006146,1781409051000,-500.0,0.00027397,2]
[425006144,1781409051000,-500.0,0.00027397,2]
[425006145,1781409051000,-500.0,0.00027397,2]
[425006139,1781409051000,-500.0,0.00027397,2]
[425006140,1781409051000,-708.06,0.00027397,2]
[425006143,1781409051000,-500.0,0.00027397,2]
[425006148,1781409051000,-563.06386284,0.00027397,2]
[425006165,1781409051000,-790.22,0.00027397,2]
[425006156,1781409051000,-500.0,0.00027397,2]
[425006152,1781409051000,-500.0,0.00027397,2]
[425006153,1781409051000,-500.0,0.00027397,2]
[425006157,1781409051000,-500.0,0.00027397,2]
[425006154,1781409051000,-500.0,0.00027397,2]
[425006158,1781409051000,-540.85,0.00027397,2]
[425006155,1781409051000,-500.0,0.00027397,2]
[425006160,1781409051000,-554.66,0.00027397,2]
[425006161,1781409051000,-500.0,0.00027397,2]
[425006162,1781409051000,-500.0,0.00027397,2]
[425006167,1781409051000,-500.0,0.00027397,2]
[425006142,1781409051000,-500.0,0.00027397,2]
[425006150,1781409051000,-500.0,0.00027397,2]
[425006141,1781409051000,-500.0,0.00027397,2]
[425006125,1781409051000,-525.53,0.00027397,2]
[425006137,1781409051000,-500.0,0.00027397,2]
[425006163,1781409051000,-1720.11,0.00027397,2]
[425006113,1781409051000,-500.0,0.00027397,2]
[425006112,1781409051000,-435.59518096,0.00027397,2]
[425006111,1781409051000,-500.0,0.00027397,2]
[425006114,1781409051000,-500.0,0.00027397,2]
[425006115,1781409051000,-2389.58,0.00027397,2]
[425006116,1781409051000,-500.0,0.00027397,2]
[425006122,1781409051000,-500.0,0.00027397,2]
[425006120,1781409051000,-1070.52,0.00027397,2]
[425006118,1781409051000,-500.0,0.00027397,2]
[425006119,1781409051000,-736.09,0.00027397,2]
[425006124,1781409051000,-595.59241215,0.00027397,2]
[425006138,1781409051000,-1030.88,0.00027397,2]
[425006117,1781409051000,-907.61,0.00027397,2]
[425006121,1781409051000,-3326.57,0.00027397,2]
[425006126,1781409051000,-528.24,0.00027397,2]
[425006127,1781409051000,-1628.6,0.00027397,2]
[425006130,1781409051000,-500.0,0.00027397,2]
[425006129,1781409051000,-500.0,0.00027397,2]
[425006135,1781409051000,-2629.2,0.00027397,2]
[425006134,1781409051000,-809.64,0.00027397,2]
[425006128,1781409051000,-500.0,0.00027397,2]
[425006132,1781409051000,-628.6,0.00027397,2]
[425006131,1781409051000,-500.0,0.00027397,2]
[425006133,1781409051000,-500.0,0.00027397,2]
[425006136,1781409051000,-500.0,0.00027397,2]
[425006123,1781409051000,-500.0,0.00027397,2]
[425006164,1781409051000,-500.0,0.00027397,2]
[425006175,1781409051000,-500.0,0.00027397,2]
[425006172,1781409051000,-500.0,0.00027397,2]
[425006198,1781409051000,-584.77,0.00027397,2]
[425006202,1781409051000,-500.0,0.00027397,2]
[425006199,1781409051000,-1027.17,0.00027397,2]
[425006201,1781409051000,-500.0,0.00027397,2]
[425006203,1781409051000,-564.58,0.00027397,2]
[425006207,1781409051000,-500.0,0.00027397,2]
[425006205,1781409051000,-1131.55,0.00027397,2]
[425006206,1781409051000,-500.0,0.00027397,2]
[425006204,1781409051000,-663.95,0.00027397,2]
[425006208,1781409051000,-543.59,0.00027397,2]
[425006210,1781409051000,-1788.6,0.00027397,2]
[425006209,1781409051000,-966.59,0.00027397,2]
[425006212,1781409051000,-500.0,0.00027397,2]
[425006218,1781409051000,-1584.27,0.00027397,2]
[425006217,1781409051000,-500.0,0.00027397,2]
[425006214,1781409051000,-811.79,0.00027397,2]
[425006213,1781409051000,-500.0,0.00027397,2]
[425006166,1781409051000,-891.91,0.00027397,2]
[425006211,1781409051000,-500.0,0.00027397,2]
[425006215,1781409051000,-1307.89,0.00027397,2]
[425006219,1781409051000,-1399.5,0.00027397,2]
[425006221,1781409051000,-500.0,0.00027397,2]
[425006220,1781409051000,-500.0,0.00027397,2]
[425006223,1781409051000,-500.0,0.00027397,2]
[425006222,1781409051000,-576.98,0.00027397,2]
[425006200,1781409051000,-500.0,0.00027397,2]
[425006197,1781409051000,-500.0,0.00027397,2]
[425006216,1781409051000,-500.0,0.00027397,2]
[425006196,1781409051000,-500.0,0.00027397,2]
[425006195,1781409051000,-1046.73,0.00027397,2]
[425006171,1781409051000,-500.0,0.00027397,2]
[425006169,1781409051000,-1051.75,0.00027397,2]
[425006168,1781409051000,-500.0,0.00027397,2]
[425006174,1781409051000,-500.0,0.00027397,2]
[425006173,1781409051000,-593.33,0.00027397,2]
[425006176,1781409051000,-603.13,0.00027397,2]
[425006183,1781409051000,-500.0,0.00027397,2]
[425006179,1781409051000,-500.0,0.00027397,2]
[425006177,1781409051000,-523.25,0.00027397,2]
[425006180,1781409051000,-1252.65,0.00027397,2]
[425006178,1781409051000,-952.51,0.00027397,2]
[425006170,1781409051000,-500.0,0.00027397,2]
[425006181,1781409051000,-500.0,0.00027397,2]
[425006194,1781409051000,-516.91,0.00027397,2]
[425006182,1781409051000,-221.82307655,0.00027397,2]
[425006191,1781409051000,-1657.18,0.00027397,2]
[425006192,1781409051000,-500.0,0.00027397,2]
[425006187,1781409051000,-1015.93,0.00027397,2]
[425006193,1781409051000,-1518.66,0.00027397,2]
[425006190,1781409051000,-1265.34,0.00027397,2]
[425006188,1781409051000,-1004.89,0.00027397,2]
[425006186,1781409051000,-500.0,0.00027397,2]
[425006185,1781409051000,-500.0,0.00027397,2]
[425006184,1781409051000,-594.51,0.00027397,2]
[425006189,1781409051000,-500.0,0.00027397,2]
[425006246,1781409052000,-500.0,0.00027397,2]
[425006252,1781409052000,-500.0,0.00027397,2]
[425006248,1781409052000,-500.0,0.00027397,2]
[425006261,1781409052000,-1068.07,0.00027397,2]
[425006247,1781409052000,-767.99,0.00027397,2]
[425006249,1781409052000,-500.0,0.00027397,2]
[425006253,1781409052000,-567.94,0.00027397,2]
[425006251,1781409052000,-500.0,0.00027397,2]
[425006257,1781409052000,-2912.98,0.00027397,2]
[425006255,1781409052000,-507.21874654,0.00027397,2]
[425006256,1781409052000,-500.0,0.00027397,2]
[425006254,1781409052000,-500.0,0.00027397,2]
[425006259,1781409052000,-279.3797902,0.00027397,2]
[425006258,1781409052000,-500.0,0.00027397,2]
[425006260,1781409052000,-866.79,0.00027397,2]
[425006245,1781409052000,-540.23,0.00027397,2]
[425006250,1781409052000,-500.0,0.00027397,2]
[425006244,1781409052000,-836.32,0.00027397,2]
[425006230,1781409052000,-500.0,0.00027397,2]
[425006243,1781409052000,-500.0,0.00027397,2]
[425006224,1781409052000,-500.0,0.00027397,2]
[425006225,1781409052000,-500.0,0.00027397,2]
[425006226,1781409052000,-1133.39,0.00027397,2]
[425006229,1781409052000,-500.0,0.00027397,2]
[425006228,1781409052000,-2379.38,0.00027397,2]
[425006227,1781409052000,-1079.42,0.00027397,2]
[425006231,1781409052000,-500.0,0.00027397,2]
[425006233,1781409052000,-530.95,0.00027397,2]
[425006232,1781409052000,-500.0,0.00027397,2]
[425006235,1781409052000,-1325.44,0.00027397,2]
[425006234,1781409052000,-503.52,0.00027397,2]
[425006236,1781409052000,-500.0,0.00027397,2]
[425006239,1781409052000,-500.0,0.00027397,2]
[425006237,1781409052000,-500.0,0.00027397,2]
[425006238,1781409052000,-821.4,0.00027397,2]
[425006241,1781409052000,-500.0,0.00027397,2]
[425006240,1781409052000,-500.0,0.00027397,2]
[425006242,1781409052000,-1147.9,0.00027397,2]
[425006264,1781409052000,-883.46,0.00027397,2]
[425006278,1781409052000,-500.0,0.00027397,2]
[425006266,1781409052000,-500.0,0.00027397,2]
[425006287,1781409052000,-500.0,0.00027397,2]
[425006288,1781409052000,-500.0,0.00027397,2]
[425006290,1781409052000,-505.77243031,0.00027397,2]
[425006292,1781409052000,-500.0,0.00027397,2]
[425006291,1781409052000,-500.0,0.00027397,2]
[425006289,1781409052000,-639.57,0.00027397,2]
[425006293,1781409052000,-500.0,0.00027397,2]
[425006284,1781409052000,-500.0,0.00027397,2]
[425006297,1781409052000,-500.0,0.00027397,2]
[425006295,1781409052000,-850.07,0.00027397,2]
[425006299,1781409052000,-586.86,0.00027397,2]
[425006298,1781409052000,-818.17,0.00027397,2]
[425006300,1781409052000,-500.0,0.00027397,2]
[425006301,1781409052000,-500.0,0.00027397,2]
[425006302,1781409052000,-500.0,0.00027397,2]
[425006262,1781409052000,-500.0,0.00027397,2]
[425006296,1781409052000,-912.32,0.00027397,2]
[425006286,1781409052000,-1415.83,0.00027397,2]
[425006294,1781409052000,-500.0,0.00027397,2]
[425006280,1781409052000,-2886.14,0.00027397,2]
[425006283,1781409052000,-500.0,0.00027397,2]
[425006265,1781409052000,-500.0,0.00027397,2]
[425006263,1781409052000,-500.0,0.00027397,2]
[425006268,1781409052000,-572.4,0.00027397,2]
[425006267,1781409052000,-500.0,0.00027397,2]
[425006270,1781409052000,-602.15,0.00027397,2]
[425006271,1781409052000,-500.0,0.00027397,2]
[425006274,1781409052000,-370.79910074,0.00027397,2]
[425006269,1781409052000,-500.0,0.00027397,2]
[425006275,1781409052000,-500.0,0.00027397,2]
[425006273,1781409052000,-500.0,0.00027397,2]
[425006272,1781409052000,-500.0,0.00027397,2]
[425006276,1781409052000,-500.0,0.00027397,2]
[425006279,1781409052000,-500.0,0.00027397,2]
[425006282,1781409052000,-1820.95,0.00027397,2]
[425006281,1781409052000,-500.0,0.00027397,2]
[425006277,1781409052000,-500.0,0.00027397,2]
[425006285,1781409052000,-500.0,0.00027397,2]
[425006326,1781409053000,-2207.05,0.00027397,2]
[425006336,1781409053000,-773.93,0.00027397,2]
[425006331,1781409053000,-500.0,0.00027397,2]
[425006332,1781409053000,-1345.26,0.00027397,2]
[425006328,1781409053000,-1889.99,0.00027397,2]
[425006329,1781409053000,-500.0,0.00027397,2]
[425006330,1781409053000,-190.28731716,0.00027397,2]
[425006334,1781409053000,-1995.7,0.00027397,2]
[425006333,1781409053000,-500.0,0.00027397,2]
[425006337,1781409053000,-500.0,0.00027397,2]
[425006340,1781409053000,-500.0,0.00027397,2]
[425006339,1781409053000,-647.49,0.00027397,2]
[425006338,1781409053000,-500.0,0.00027397,2]
[425006343,1781409053000,-614.77,0.00027397,2]
[425006344,1781409053000,-952.75,0.00027397,2]
[425006342,1781409053000,-500.0,0.00027397,2]
[425006345,1781409053000,-500.36,0.00027397,2]
[425006346,1781409053000,-500.0,0.00027397,2]
[425006341,1781409053000,-500.0,0.00027397,2]
[425006327,1781409053000,-500.0,0.00027397,2]
[425006335,1781409053000,-569.22,0.00027397,2]
[425006325,1781409053000,-500.0,0.00027397,2]
[425006303,1781409053000,-500.0,0.00027397,2]
[425006319,1781409053000,-500.0,0.00027397,2]
[425006306,1781409053000,-809.7,0.00027397,2]
[425006305,1781409053000,-500.0,0.00027397,2]
[425006304,1781409053000,-500.0,0.00027397,2]
[425006348,1781409053000,-500.0,0.00027397,2]
[425006308,1781409053000,-500.0,0.00027397,2]
[425006317,1781409053000,-1429.81,0.00027397,2]
[425006316,1781409053000,-2022.24,0.00027397,2]
[425006309,1781409053000,-2435.8,0.00027397,2]
[425006310,1781409053000,-661.96,0.00027397,2]
[425006322,1781409053000,-1748.77,0.00027397,2]
[425006307,1781409053000,-500.0,0.00027397,2]
[425006312,1781409053000,-500.0,0.00027397,2]
[425006311,1781409053000,-934.5,0.00027397,2]
[425006314,1781409053000,-753.71,0.00027397,2]
[425006315,1781409053000,-825.34,0.00027397,2]
[425006318,1781409053000,-500.0,0.00027397,2]
[425006320,1781409053000,-500.0,0.00027397,2]
[425006323,1781409053000,-500.0,0.00027397,2]
[425006324,1781409053000,-500.0,0.00027397,2]
[425006321,1781409053000,-513.55,0.00027397,2]
[425006313,1781409053000,-500.0,0.00027397,2]
[425006347,1781409053000,-579.04,0.00027397,2]
[425006350,1781409053000,-538.6,0.00027397,2]
[425006390,1781409053000,-500.0,0.00027397,2]
[425006377,1781409053000,-500.0,0.00027397,2]
[425006379,1781409053000,-500.0,0.00027397,2]
[425006378,1781409053000,-500.0,0.00027397,2]
[425006381,1781409053000,-500.0,0.00027397,2]
[425006374,1781409053000,-500.0,0.00027397,2]
[425006382,1781409053000,-500.0,0.00027397,2]
[425006383,1781409053000,-673.72,0.00027397,2]
[425006385,1781409053000,-500.0,0.00027397,2]
[425006384,1781409053000,-500.0,0.00027397,2]
[425006386,1781409053000,-500.0,0.00027397,2]
[425006387,1781409053000,-882.48,0.00027397,2]
[425006391,1781409053000,-500.0,0.00027397,2]
[425006388,1781409053000,-500.0,0.00027397,2]
[425006393,1781409053000,-500.0,0.00027397,2]
[425006389,1781409053000,-500.0,0.00027397,2]
[425006392,1781409053000,-532.83884775,0.00027397,2]
[425006349,1781409053000,-500.0,0.00027397,2]
[425006395,1781409053000,-500.0,0.00027397,2]
[425006394,1781409053000,-500.0,0.00027397,2]
[425006397,1781409053000,-1106.01,0.00027397,2]
[425006396,1781409053000,-626.46,0.00027397,2]
[425006376,1781409053000,-500.0,0.00027397,2]
[425006375,1781409053000,-508.68,0.00027397,2]
[425006380,1781409053000,-531.62,0.00027397,2]
[425006370,1781409053000,-500.0,0.00027397,2]
[425006351,1781409053000,-500.0,0.00027397,2]
[425006352,1781409053000,-616.23598685,0.00027397,2]
[425006373,1781409053000,-500.0,0.00027397,2]
[425006361,1781409053000,-1484.04,0.00027397,2]
[425006353,1781409053000,-1731.63,0.00027397,2]
[425006354,1781409053000,-682.82,0.00027397,2]
[425006357,1781409053000,-1861.8,0.00027397,2]
[425006359,1781409053000,-500.0,0.00027397,2]
[425006356,1781409053000,-500.0,0.00027397,2]
[425006355,1781409053000,-500.0,0.00027397,2]
[425006358,1781409053000,-722.01,0.00027397,2]
[425006362,1781409053000,-500.0,0.00027397,2]
[425006363,1781409053000,-540.13115752,0.00027397,2]
[425006360,1781409053000,-610.47,0.00027397,2]
[425006372,1781409053000,-500.0,0.00027397,2]
[425006371,1781409053000,-500.0,0.00027397,2]
[425006368,1781409053000,-500.0,0.00027397,2]
[425006369,1781409053000,-795.37,0.00027397,2]
[425006366,1781409053000,-808.4,0.00027397,2]
[425006365,1781409053000,-500.0,0.00027397,2]
[425006364,1781409053000,-500.0,0.00027397,2]
[425006367,1781409053000,-500.0,0.00027397,2]
[425006426,1781409054000,-500.0,0.00027397,2]
[425006423,1781409054000,-545.69,0.00027397,2]
[425006424,1781409054000,-500.0,0.00027397,2]
[425006421,1781409054000,-776.73,0.00027397,2]
[425006418,1781409054000,-1085.18,0.00027397,2]
[425006420,1781409054000,-634.1,0.00027397,2]
[425006422,1781409054000,-608.63,0.00027397,2]
[425006425,1781409054000,-500.0,0.00027397,2]
[425006427,1781409054000,-500.0,0.00027397,2]
[425006430,1781409054000,-609.27,0.00027397,2]
[425006431,1781409054000,-815.03,0.00027397,2]
[425006429,1781409054000,-1489.41,0.00027397,2]
[425006432,1781409054000,-500.0,0.00027397,2]
[425006433,1781409054000,-649.62,0.00027397,2]
[425006435,1781409054000,-500.0,0.00027397,2]
[425006437,1781409054000,-500.0,0.00027397,2]
[425006419,1781409054000,-566.57,0.00027397,2]
[425006428,1781409054000,-500.0,0.00027397,2]
[425006411,1781409054000,-1059.85,0.00027397,2]
[425006434,1781409054000,-500.0,0.00027397,2]
[425006413,1781409054000,-584.32,0.00027397,2]
[425006400,1781409054000,-500.0,0.00027397,2]
[425006399,1781409054000,-500.0,0.00027397,2]
[425006401,1781409054000,-2898.1,0.00027397,2]
[425006398,1781409054000,-624.78,0.00027397,2]
[425006402,1781409054000,-1831.9,0.00027397,2]
[425006403,1781409054000,-500.0,0.00027397,2]
[425006405,1781409054000,-500.0,0.00027397,2]
[425006404,1781409054000,-500.0,0.00027397,2]
[425006407,1781409054000,-500.0,0.00027397,2]
[425006406,1781409054000,-2312.62,0.00027397,2]
[425006409,1781409054000,-500.0,0.00027397,2]
[425006408,1781409054000,-500.0,0.00027397,2]
[425006410,1781409054000,-500.0,0.00027397,2]
[425006412,1781409054000,-500.0,0.00027397,2]
[425006415,1781409054000,-680.06,0.00027397,2]
[425006414,1781409054000,-586.03,0.00027397,2]
[425006417,1781409054000,-621.41,0.00027397,2]
[425006416,1781409054000,-500.0,0.00027397,2]
[425006436,1781409054000,-2998.78,0.00027397,2]
[425006461,1781409054000,-500.0,0.00027397,2]
[425006439,1781409054000,-500.0,0.00027397,2]
[425006462,1781409054000,-500.0,0.00027397,2]
[425006465,1781409054000,-500.0,0.00027397,2]
[425006463,1781409054000,-2203.38,0.00027397,2]
[425006466,1781409054000,-500.0,0.00027397,2]
[425006464,1781409054000,-500.0,0.00027397,2]
[425006467,1781409054000,-500.0,0.00027397,2]
[425006438,1781409054000,-500.0,0.00027397,2]
[425006470,1781409054000,-2003.38,0.00027397,2]
[425006468,1781409054000,-848.5,0.00027397,2]
[425006475,1781409054000,-959.63,0.00027397,2]
[425006473,1781409054000,-500.0,0.00027397,2]
[425006472,1781409054000,-511.20431462,0.00027397,2]
[425006471,1781409054000,-500.0,0.00027397,2]
[425006474,1781409054000,-556.06,0.00027397,2]
[425006477,1781409054000,-500.0,0.00027397,2]
[425006476,1781409054000,-1127.74,0.00027397,2]
[425006478,1781409054000,-500.0,0.00027397,2]
[425006459,1781409054000,-500.0,0.00027397,2]
[425006460,1781409054000,-500.0,0.00027397,2]
[425006469,1781409054000,-828.51,0.00027397,2]
[425006455,1781409054000,-500.0,0.00027397,2]
[425006457,1781409054000,-500.0,0.00027397,2]
[425006440,1781409054000,-952.2,0.00027397,2]
[425006443,1781409054000,-500.0,0.00027397,2]
[425006446,1781409054000,-615.20228985,0.00027397,2]
[425006442,1781409054000,-239.72745326,0.00027397,2]
[425006444,1781409054000,-644.15,0.00027397,2]
[425006445,1781409054000,-500.0,0.00027397,2]
[425006447,1781409054000,-1582.03,0.00027397,2]
[425006441,1781409054000,-500.0,0.00027397,2]
[425006448,1781409054000,-500.0,0.00027397,2]
[425006450,1781409054000,-500.0,0.00027397,2]
[425006451,1781409054000,-500.0,0.00027397,2]
[425006452,1781409054000,-513.47520645,0.00027397,2]
[425006454,1781409054000,-1098.22,0.00027397,2]
[425006456,1781409054000,-500.0,0.00027397,2]
[425006458,1781409054000,-879.52,0.00027397,2]
[425006453,1781409054000,-500.0,0.00027397,2]
[425006449,1781409054000,-500.0,0.00027397,2]
[425006494,1781409055000,-581.49,0.00027397,2]
[425006491,1781409055000,-615.69276079,0.00027397,2]
[425006489,1781409055000,-638.80016587,0.00027397,2]
[425006487,1781409055000,-500.0,0.00027397,2]
[425006493,1781409055000,-2013.71,0.00027397,2]
[425006492,1781409055000,-1535.05,0.00027397,2]
[425006490,1781409055000,-500.0,0.00027397,2]
[425006483,1781409055000,-500.0,0.00027397,2]
[425006485,1781409055000,-500.0,0.00027397,2]
[425006486,1781409055000,-500.0,0.00027397,2]
[425006484,1781409055000,-632.28,0.00027397,2]
[425006482,1781409055000,-560.27833801,0.00027397,2]
[425006481,1781409055000,-500.0,0.00027397,2]
[425006479,1781409055000,-500.0,0.00027397,2]
[425006480,1781409055000,-610.3,0.00027397,2]
[425006488,1781409055000,-1109.44,0.00027397,2]
[425006498,1781409055000,-500.0,0.00027397,2]
[425006495,1781409055000,-500.0,0.00027397,2]
[425006497,1781409055000,-500.0,0.00027397,2]
[425006496,1781409055000,-1120.6,0.00027397,2]
[425006518,1781409055000,-500.0,0.00027397,2]
[425006520,1781409055000,-500.0,0.00027397,2]
[425006513,1781409055000,-500.0,0.00027397,2]
[425006507,1781409055000,-500.0,0.00027397,2]
[425006509,1781409055000,-1685.44,0.00027397,2]